[Event "2nd Asian Nations Team Cup U14 2019"]
[Site "Shenzhen"]
[Date "2019.12.21"]
[Round "4.19"]
[White "Liu, Fung Ming Mathew"]
[Black "Liu, David J"]
[Result "1/2-1/2"]
[ECO "C42"]
[WhiteElo "1493"]
[BlackElo "1897"]
[Annotator "NA RC"]
[PlyCount "84"]
[EventDate "2019.12.19"]
[EventType "team-tourn"]
[EventCountry "CHN"]
[SourceTitle "playchess.com"]
[Source "ChessBase"]
[SourceQuality "1"]
[TimeControl "5400+30"]

1. e4 {[%emt 0:00:00]} e5 {[%emt 0:00:00]} 2. Nf3 {[%emt 0:00:00]} Nf6 {[%emt 0:00:00]} 3. Nxe5 {[%emt 0:00:00]} d6 {[%emt 0:00:00]} 4. Nf3 {[%emt 0:00:04]} Nxe4 {[%emt 0:00:00]} 5. d4 {[%emt 0:00:07]} d5 {[%emt 0:00:00]} 6. Bd3 {[%emt 0:00:11]} Be7 {[%emt 0:00:00]} 7. O-O {[%emt 0:00:08]} Bg4 {[%emt 0:00:01]} 8. Re1 {[%emt 0:00:18]} Nc6 {[%emt 0:00:04]} 9. c3 {[%emt 0:00:47]} Nf6 {[%emt 0:00:15]} 10. h3 {[%emt 0:00:35]} Bh5 {[%emt 0:00:04]} 11. Bf4 {[%emt 0:00:29]} O-O {[%emt 0:00:13]} 12. Nbd2 {[%emt 0:00:06]} Bd6 {[%emt 0:00:20]} 13. Bg5 {[%emt 0:00:36]} h6 {[%emt 0:00:12]} 14. Bh4 {[%emt 0:01:13]} Bf4 {[%emt 0:00:23]} 15. Qc2 {[%emt 0:01:24]} Qd6 {[%emt 0:00:20]} 16. Bxf6 {[%emt 0:00:24]} Qxf6 {[%emt 0:00:07]} 17. Bf1 {[%emt 0:03:32]} Bg6 {[%emt 0:00:10]} 18. Qb3 {[%emt 0:01:01]} Rad8 {[%emt 0:00:55]} 19. g3 {[%emt 0:09:52]} Bxd2 {[%emt 0:01:32]} 20. Nxd2 {[%emt 0:00:24]} b6 {[%emt 0:02:23]} 21. Bg2 {[%emt 0:00:58]} Nb8 {[%emt 0:04:00]} 22. Nf1 {[%emt 0:03:24]} Qd6 {[%emt 0:04:34]} 23. Re5 {[%emt 0:01:06]} c6 {[%emt 0:00:33]} 24. Rae1 {[%emt 0:00:15]} Nd7 {[%emt 0:05:04]} 25. R5e3 {[%emt 0:01:55]} Nf6 {[%emt 0:00:43]} 26. Nd2 {[%emt 0:04:52]} Rfe8 {[%emt 0:00:49]} 27. Nf3 {[%emt 0:04:26]} Be4 {[%emt 0:01:26]} 28. Ne5 {[%emt 0:00:59]} Bxg2 {[%emt 0:00:16]} 29. Kxg2 {[%emt 0:00:05]} Nd7 {[%emt 0:03:40]} 30. Nf3 {[%emt 0:12:03]} Re6 {[%emt 0:01:49]} 31. Rxe6 {[%emt 0:00:40]} fxe6 {[%emt 0:00:10]} 32. Qc2 {[%emt 0:00:13]} Rf8 {[%emt 0:00:42]} 33. Qg6 {[%emt 0:00:58]} Rf6 {[%emt 0:00:06]} 34. Qe8+ {[%emt 0:00:21]} Nf8 {[%emt 0:01:12]} 35. Qa8 {[%emt 0:05:57]} Qc7 {[%emt 0:00:52]} 36. h4 {[%emt 0:04:46]} Kh7 {[%emt 0:01:04]} 37. Qe8 {[%emt 0:02:58]} Qd7 {[%emt 0:01:56]} 38. Qa8 {[%emt 0:00:37]} Qc7 {[%emt 0:00:31]} 39. Qe8 {[%emt 0:02:59]} Qd7 {[%emt 0:00:07]} 40. Qa8 {[%emt 0:00:04]} Qc7 {[%emt 0:00:22]} 41. b4 {[%emt 0:02:06]} c5 {[%emt 0:02:02]} 42. dxc5 {[%emt 0:02:41]} bxc5 {[%emt 0:00:09]} 1/2-1/2

[Event "2nd Asian Nations Team Cup U14 2019"]
[Site "Shenzhen"]
[Date "2019.12.23"]
[Round "5.1"]
[White "Wang, Benchi"]
[Black "Yin, Richard"]
[Result "0-1"]
[ECO "D02"]
[WhiteElo "1747"]
[BlackElo "1427"]
[Annotator "NA RC"]
[PlyCount "156"]
[EventDate "2019.12.19"]
[EventType "team-tourn"]
[EventCountry "CHN"]
[SourceTitle "playchess.com"]
[Source "ChessBase"]
[SourceQuality "1"]
[WhiteTeam "China"]
[BlackTeam "Hong Kong"]
[WhiteTeamCountry "CHN"]
[BlackTeamCountry "HKG"]
[TimeControl "5400+30"]

1. d4 {[%emt 0:00:00]} d5 {[%emt 0:00:13]} 2. Nf3 {[%emt 0:00:00]} Nf6 {[%emt 0:00:23]} 3. g3 {[%emt 0:00:10]} e6 {[%emt 0:04:04]} 4. Bg2 {[%emt 0:00:12]} c5 {[%emt 0:06:26]} 5. c3 {[%emt 0:03:06]} Nc6 {[%emt 0:03:34]} 6. O-O {[%emt 0:00:37]} Bd6 {[%emt 0:01:00]} 7. Bg5 {[%emt 0:03:38]} O-O {[%emt 0:13:55]} 8. Nbd2 {[%emt 0:01:50]} cxd4 {[%emt 0:04:13]} 9. cxd4 {[%emt 0:00:55]} Be7 {[%emt 0:00:36]} 10. Bxf6 {[%emt 0:05:40]} Bxf6 {[%emt 0:00:21]} 11. e3 {[%emt 0:00:05]} b6 {[%emt 0:02:32]} 12. Rc1 {[%emt 0:01:54]} Bb7 {[%emt 0:00:53]} 13. a3 {[%emt 0:05:51]} Qd7 {[%emt 0:06:17]} 14. b4 {[%emt 0:00:00]} Ne7 {[%emt 0:02:45]} 15. Qb3 {[%emt 0:02:02]} Rfc8 {[%emt 0:08:15]} 16. Rfd1 {[%emt 0:13:12]} Rc7 {[%emt 0:04:00]} 17. Rxc7 {[%emt 0:01:25]} Qxc7 {[%emt 0:05:25]} 18. Ne1 {[%emt 0:01:05]} Rc8 {[%emt 0:02:47]} 19. Qa4 {[%emt 0:02:52]} Bc6 {[%emt 0:00:16]} 20. b5 {[%emt 0:01:55]} Be8 {[%emt 0:01:49]} 21. Qa6 {[%emt 0:02:33]} Qc3 {[%emt 0:02:18]} 22. Qxa7 {[%emt 0:05:47]} Bxb5 {[%emt 0:00:26]} 23. Qxb6 {[%emt 0:03:00]} Ba4 {[%emt 0:01:17]} 24. Qb1 {[%emt 0:08:57]} Bxd1 {[%emt 0:02:51]} 25. Qxd1 {[%emt 0:00:05]} Qxa3 {[%emt 0:00:08]} 26. Bf1 {[%emt 0:01:37]} Nf5 {[%emt 0:03:00]} 27. Qb3 {[%emt 0:01:56]} Qxb3 {[%emt 0:01:09]} 28. Nxb3 {[%emt 0:00:09]} Nd6 {[%emt 0:00:47]} 29. Nc5 {[%emt 0:00:34]} Ra8 {[%emt 0:02:56]} 30. Ned3 {[%emt 0:00:29]} Ra1 {[%emt 0:01:01]} 31. Kg2 {[%emt 0:00:50]} Nc4 {[%emt 0:01:05]} 32. Be2 {[%emt 0:03:44]} Ra2 {[%emt 0:00:39]} 33. Kf1 {[%emt 0:00:23]} Kf8 {[%emt 0:01:27]} 34. Nb4 {[%emt 0:01:45]} Rb2 {[%emt 0:02:13]} 35. Nbd3 {[%emt 0:00:12]} Ra2 {[%emt 0:01:01]} 36. Nb4 {[%emt 0:00:52]} Ra1+ {[%emt 0:00:19]} 37. Kg2 {[%emt 0:00:06]} Be7 {[%emt 0:00:22]} 38. Nbd3 {[%emt 0:05:31]} Bxc5 {[%emt 0:00:47]} 39. Nxc5 {[%emt 0:00:07]} Ra2 {[%emt 0:00:44]} 40. Kf3 {[%emt 0:02:13]} Ke7 {[%emt 0:00:45]} 41. Bd3 {[%emt 0:00:27]} h6 {[%emt 0:00:21]} 42. h4 {[%emt 0:03:59]} e5 {[%emt 0:02:59]} 43. e4 {[%emt 0:04:59]} exd4 {[%emt 0:04:26]} 44. exd5 {[%emt 0:00:37]} Nd2+ {[%emt 0:01:09]} 45. Kf4 {[%emt 0:05:37]} Kd6 {[%emt 0:00:44]} 46. Na6 {[%emt 0:03:43]} Ra3 {[%emt 0:01:50]} 47. Bb5 {[%emt 0:00:34]} Rf3+ {[%emt 0:01:15]} 48. Kg4 {[%emt 0:00:07]} Rxf2 {[%emt 0:00:38]} 49. Nb4 {[%emt 0:01:27]} Rf6 {[%emt 0:01:16]} 50. Bc6 {[%emt 0:00:46]} Ne4 {[%emt 0:01:03]} 51. h5 {[%emt 0:01:04]} Nf2+ {[%emt 0:00:45]} 52. Kh4 {[%emt 0:00:07]} d3 {[%emt 0:00:30]} 53. Ba4 {[%emt 0:01:05]} Kc5 {[%emt 0:01:01]} 54. Na2 {[%emt 0:00:15]} Kxd5 {[%emt 0:01:25]} 55. Nc3+ {[%emt 0:00:14]} Kc4 {[%emt 0:00:19]} 56. Nb1 {[%emt 0:00:28]} Kb4 {[%emt 0:00:30]} 57. Be8 {[%emt 0:00:41]} Re6 {[%emt 0:00:16]} 58. Bd7 {[%emt 0:00:07]} Rd6 {[%emt 0:00:08]} 59. Bf5 {[%emt 0:00:14]} d2 {[%emt 0:00:19]} 60. Nxd2 {[%emt 0:00:06]} Rxd2 {[%emt 0:00:10]} 61. g4 {[%emt 0:00:09]} Rd4 {[%emt 0:00:30]} 62. Kg3 {[%emt 0:00:12]} Ne4+ {[%emt 0:00:07]} 63. Kh4 {[%emt 0:00:22]} Ng5 {[%emt 0:00:09]} 64. Kg3 {[%emt 0:00:07]} Rd6 {[%emt 0:00:15]} 65. Bc2 {[%emt 0:00:16]} Kc3 {[%emt 0:00:19]} 66. Bb1 {[%emt 0:00:06]} Kd2 {[%emt 0:00:09]} 67. Kf2 {[%emt 0:00:18]} g6 {[%emt 0:00:17]} 68. hxg6 {[%emt 0:00:17]} fxg6 {[%emt 0:00:05]} 69. Ba2 {[%emt 0:00:07]} Rf6+ {[%emt 0:00:04]} 70. Kg2 {[%emt 0:00:07]} Ke3 {[%emt 0:00:10]} 71. Bd5 {[%emt 0:00:04]} h5 {[%emt 0:00:18]} 72. gxh5 {[%emt 0:00:04]} gxh5 {[%emt 0:00:03]} 73. Kg3 {[%emt 0:00:07]} Ne4+ {[%emt 0:00:36]} 74. Kh4 {[%emt 0:00:07]} Kf4 {[%emt 0:00:37]} 75. Bb3 {[%emt 0:00:52]} Rh6 {[%emt 0:01:03]} 76. Bd1 {[%emt 0:00:35]} Ng3 {[%emt 0:01:06]} 77. Bc2 {[%emt 0:00:06]} Nf5+ {[%emt 0:00:12]} 78. Bxf5 {[%emt 0:00:04]} Kxf5 {[%emt 0:00:18]} 0-1

[Event "2nd Asian Nations Team Cup U14 2019"]
[Site "Shenzhen"]
[Date "2019.12.23"]
[Round "5.2"]
[White "Lam, Chun Yung Samuel"]
[Black "Zhang, Yuanxiao"]
[Result "1-0"]
[ECO "C00"]
[WhiteElo "1288"]
[BlackElo "1545"]
[Annotator "NA RC"]
[PlyCount "57"]
[EventDate "2019.12.19"]
[EventType "team-tourn"]
[EventCountry "CHN"]
[SourceTitle "playchess.com"]
[Source "ChessBase"]
[SourceQuality "1"]
[WhiteTeam "Hong Kong"]
[BlackTeam "China"]
[WhiteTeamCountry "HKG"]
[BlackTeamCountry "CHN"]
[TimeControl "5400+30"]

1. Nf3 {[%emt 0:00:00]} d5 {[%emt 0:00:00]} 2. g3 {[%emt 0:00:03]} c5 {[%emt 0:00:00]} 3. Bg2 {[%emt 0:00:11]} Nc6 {[%emt 0:00:00]} 4. O-O {[%emt 0:00:25]} Nf6 {[%emt 0:00:11]} 5. d3 {[%emt 0:00:05]} e6 {[%emt 0:00:33]} 6. Nbd2 {[%emt 0:00:22]} Be7 {[%emt 0:00:14]} 7. e4 {[%emt 0:00:04]} O-O {[%emt 0:00:30]} 8. e5 {[%emt 0:00:10]} Nd7 {[%emt 0:00:40]} 9. Re1 {[%emt 0:00:08]} Rb8 {[%emt 0:00:51]} 10. Nf1 {[%emt 0:00:38]} b5 {[%emt 0:00:28]} 11. h4 {[%emt 0:00:17]} c4 {[%emt 0:07:50]} 12. d4 {[%emt 0:00:22]} b4 {[%emt 0:00:23]} 13. c3 {[%emt 0:00:16]} a5 {[%emt 0:07:34]} 14. N1h2 {[%emt 0:00:38]} bxc3 {[%emt 0:24:34]} 15. bxc3 {[%emt 0:00:08]} Rb5 {[%emt 0:00:20]} 16. Ng5 {[%emt 0:00:21]} Bxg5 {[%emt 0:06:36]} 17. Bxg5 {[%emt 0:00:06]} f6 {[%emt 0:00:21]} 18. exf6 {[%emt 0:00:33]} Nxf6 {[%emt 0:00:23]} 19. Ng4 {[%emt 0:00:22]} Qd7 {[%emt 0:00:47]} 20. Bxf6 {[%emt 0:00:34]} gxf6 {[%emt 0:00:25]} 21. Nh6+ {[%emt 0:00:43]} Kh8 {[%emt 0:00:55]} 22. Bh3 {[%emt 0:00:37]} Qg7 {[%emt 0:05:29]} 23. Qh5 {[%emt 0:00:47]} e5 {[%emt 0:10:07]} 24. Bxc8 {[%emt 0:00:25]} Rxc8 {[%emt 0:00:21]} 25. Nf7+ {[%emt 0:01:05]} Kg8 {[%emt 0:00:13]} 26. Nd6 {[%emt 0:00:25]} Rcb8 {[%emt 0:00:12]} 27. Nxb5 {[%emt 0:00:08]} Rxb5 {[%emt 0:00:08]} 28. Qe8+ {[%emt 0:00:04]} Qf8 {[%emt 0:00:44]} 29. Qxc6 {[%emt 0:00:06]} 1-0

[Event "2nd Asian Nations Team Cup U14 2019"]
[Site "Shenzhen"]
[Date "2019.12.23"]
[Round "5.6"]
[White "Kannappan, Thanneermalai"]
[Black "Meng, Yihan"]
[Result "0-1"]
[ECO "B28"]
[WhiteElo "1495"]
[BlackElo "1787"]
[Annotator "NA RC"]
[PlyCount "94"]
[EventDate "2019.12.19"]
[EventType "team-tourn"]
[EventCountry "CHN"]
[SourceTitle "playchess.com"]
[Source "ChessBase"]
[SourceQuality "1"]
[WhiteTeam "Hong Kong"]
[BlackTeam "China"]
[WhiteTeamCountry "HKG"]
[BlackTeamCountry "CHN"]
[TimeControl "5400+30"]

1. e4 {[%emt 0:00:00]} c5 {[%emt 0:00:00]} 2. Nf3 {[%emt 0:00:00]} a6 {[%emt 0:00:00]} 3. c3 {[%emt 0:00:00]} Nf6 {[%emt 0:00:27]} 4. e5 {[%emt 0:00:50]} Nd5 {[%emt 0:00:10]} 5. d4 {[%emt 0:00:48]} cxd4 {[%emt 0:00:19]} 6. cxd4 {[%emt 0:00:12]} d6 {[%emt 0:00:27]} 7. Nc3 {[%emt 0:03:42]} Nb6 {[%emt 0:01:52]} 8. Bd3 {[%emt 0:09:34]} g6 {[%emt 0:01:18]} 9. O-O {[%emt 0:03:13]} Bg7 {[%emt 0:05:44]} 10. Bf4 {[%emt 0:05:32]} dxe5 {[%emt 0:01:00]} 11. dxe5 {[%emt 0:01:33]} Nc6 {[%emt 0:00:52]} 12. a3 {[%emt 0:04:51]} O-O {[%emt 0:01:23]} 13. Re1 {[%emt 0:04:20]} Nd7 {[%emt 0:06:58]} 14. Bg3 {[%emt 0:16:43]} Nc5 {[%emt 0:00:48]} 15. Bc4 {[%emt 0:04:04]} Bg4 {[%emt 0:07:39]} 16. Qxd8 {[%emt 0:09:17]} Raxd8 {[%emt 0:01:10]} 17. Ng5 {[%emt 0:07:12]} Nd3 {[%emt 0:25:56]} 18. Bxd3 {[%emt 0:01:45]} Rxd3 {[%emt 0:00:23]} 19. f4 {[%emt 0:06:28]} Nd4 {[%emt 0:00:49]} 20. Rac1 {[%emt 0:02:26]} Rd2 {[%emt 0:01:35]} 21. b4 {[%emt 0:01:04]} Rc8 {[%emt 0:07:16]} 22. Nge4 {[%emt 0:03:05]} Rc2 {[%emt 0:00:11]} 23. Bf2 {[%emt 0:02:01]} Rxc1 {[%emt 0:01:20]} 24. Rxc1 {[%emt 0:00:11]} Ne6 {[%emt 0:04:32]} 25. Be3 {[%emt 0:03:52]} g5 {[%emt 0:01:55]} 26. g3 {[%emt 0:01:47]} gxf4 {[%emt 0:00:28]} 27. gxf4 {[%emt 0:00:06]} Bh6 {[%emt 0:02:03]} 28. Nd5 {[%emt 0:01:26]} Rxc1+ {[%emt 0:00:24]} 29. Bxc1 {[%emt 0:00:04]} Kf8 {[%emt 0:07:36]} 30. Kf2 {[%emt 0:00:37]} Nd4 {[%emt 0:04:50]} 31. a4 {[%emt 0:00:37]} Bd7 {[%emt 0:04:02]} 32. Nc5 {[%emt 0:02:11]} Bc6 {[%emt 0:00:03]} 33. Nc3 {[%emt 0:00:25]} Ne6 {[%emt 0:02:32]} 34. Kg3 {[%emt 0:00:55]} Nxc5 {[%emt 0:00:26]} 35. bxc5 {[%emt 0:00:05]} Kg7 {[%emt 0:00:58]} 36. Ne2 {[%emt 0:00:27]} Bxa4 {[%emt 0:00:14]} 37. Kf3 {[%emt 0:00:13]} Bd1 {[%emt 0:00:14]} 38. Ke3 {[%emt 0:00:25]} Bxe2 {[%emt 0:00:12]} 39. Kxe2 {[%emt 0:00:04]} e6 {[%emt 0:02:11]} 40. Kd3 {[%emt 0:00:05]} Kg6 {[%emt 0:00:13]} 41. Ke4 {[%emt 0:00:20]} Kh5 {[%emt 0:01:14]} 42. Kf3 {[%emt 0:01:04]} Kh4 {[%emt 0:00:16]} 43. Ke4 {[%emt 0:00:25]} Kg4 {[%emt 0:00:23]} 44. Kd4 {[%emt 0:00:18]} Bxf4 {[%emt 0:00:14]} 45. Bxf4 Kxf4 {[%emt 0:00:07]} 46. Kc4 {[%emt 0:00:12]} Kxe5 {[%emt 0:00:05]} 47. Kb4 {[%emt 0:00:04]} Kd5 {[%emt 0:00:03]} 0-1

[Event "2nd Asian Nations Team Cup U14 2019"]
[Site "Shenzhen"]
[Date "2019.12.23"]
[Round "5.7"]
[White "Wang, Yuehan"]
[Black "Liu, Fung Ming Mathew"]
[Result "1-0"]
[ECO "B55"]
[WhiteElo "1724"]
[BlackElo "1493"]
[Annotator "NA RC"]
[PlyCount "93"]
[EventDate "2019.12.19"]
[EventType "team-tourn"]
[EventCountry "CHN"]
[SourceTitle "playchess.com"]
[Source "ChessBase"]
[SourceQuality "1"]
[WhiteTeam "China"]
[BlackTeam "Hong Kong"]
[WhiteTeamCountry "CHN"]
[BlackTeamCountry "HKG"]
[TimeControl "5400+30"]

1. e4 {[%emt 0:00:00]} c5 {[%emt 0:00:00]} 2. Nf3 {[%emt 0:00:00]} d6 {[%emt 0:00:00]} 3. d4 {[%emt 0:00:00]} cxd4 {[%emt 0:00:00]} 4. Nxd4 {[%emt 0:00:00]} Nf6 {[%emt 0:00:06]} 5. f3 {[%emt 0:00:12]} e6 {[%emt 0:00:25]} 6. c4 {[%emt 0:00:11]} Be7 {[%emt 0:00:23]} 7. Nc3 {[%emt 0:00:17]} O-O {[%emt 0:01:10]} 8. Be3 {[%emt 0:00:07]} Nc6 {[%emt 0:00:50]} 9. Qd2 {[%emt 0:00:23]} d5 {[%emt 0:03:03]} 10. Nxc6 {[%emt 0:09:15]} bxc6 {[%emt 0:00:31]} 11. e5 {[%emt 0:00:05]} Nd7 {[%emt 0:04:28]} 12. f4 {[%emt 0:00:20]} Bb4 {[%emt 0:04:16]} 13. a3 {[%emt 0:00:41]} Bc5 {[%emt 0:00:56]} 14. Be2 {[%emt 0:00:38]} Bxe3 {[%emt 0:02:47]} 15. Qxe3 {[%emt 0:00:07]} Nb6 {[%emt 0:02:10]} 16. Rd1 {[%emt 0:00:24]} Qh4+ {[%emt 0:03:50]} 17. g3 {[%emt 0:00:19]} Qe7 {[%emt 0:03:14]} 18. cxd5 {[%emt 0:00:22]} cxd5 {[%emt 0:03:56]} 19. O-O {[%emt 0:00:14]} Bb7 {[%emt 0:05:29]} 20. Nb5 {[%emt 0:00:30]} Ba6 {[%emt 0:05:09]} 21. Rc1 {[%emt 0:01:36]} Bxb5 {[%emt 0:02:15]} 22. Bxb5 {[%emt 0:00:09]} Rac8 {[%emt 0:01:03]} 23. Qd4 {[%emt 0:00:40]} Qb7 {[%emt 0:03:56]} 24. Bd3 {[%emt 0:00:16]} g6 {[%emt 0:03:44]} 25. b3 {[%emt 0:00:42]} Nd7 {[%emt 0:05:05]} 26. b4 {[%emt 0:00:40]} a6 {[%emt 0:06:49]} 27. Qe3 {[%emt 0:00:39]} Rfd8 {[%emt 0:04:15]} 28. Qe2 {[%emt 0:00:10]} Qb6+ {[%emt 0:00:48]} 29. Kg2 {[%emt 0:00:10]} Nb8 {[%emt 0:00:59]} 30. h4 {[%emt 0:02:41]} a5 {[%emt 0:05:11]} 31. b5 {[%emt 0:00:39]} Nd7 {[%emt 0:04:42]} 32. h5 {[%emt 0:00:16]} Kg7 {[%emt 0:05:34]} 33. Bb1 {[%emt 0:01:05]} Nc5 {[%emt 0:02:56]} 34. Rh1 {[%emt 0:00:07]} d4 {[%emt 0:04:47]} 35. Qg4 {[%emt 0:02:27]} Qb7+ {[%emt 0:01:27]} 36. Kg1 {[%emt 0:00:21]} Rh8 {[%emt 0:01:58]} 37. Qh4 {[%emt 0:01:28]} Nd7 {[%emt 0:00:46]} 38. Kf2 {[%emt 0:01:26]} Rxc1 {[%emt 0:00:40]} 39. h6+ {[%emt 0:00:07]} Kg8 {[%emt 0:00:41]} 40. Qd8+ {[%emt 0:00:05]} Nf8 {[%emt 0:00:12]} 41. Rxc1 {[%emt 0:00:04]} f5 {[%emt 0:01:45]} 42. Rc7 {[%emt 0:00:13]} Qxc7 {[%emt 0:00:37]} 43. Qxc7 {[%emt 0:00:06]} Nd7 {[%emt 0:00:09]} 44. Qxd7 {[%emt 0:00:05]} Kf8 {[%emt 0:00:06]} 45. b6 {[%emt 0:00:04]} d3 {[%emt 0:00:14]} 46. b7 {[%emt 0:00:03]} d2 {[%emt 0:00:13]} 47. b8=R# {[%emt 0:00:08]} 1-0

[Event "2nd Asian Nations Team Cup U14 2019"]
[Site "Shenzhen"]
[Date "2019.12.23"]
[Round "5.8"]
[White "Lee, Gerent Chak Yan"]
[Black "Zhao, Yunqing"]
[Result "0-1"]
[ECO "E17"]
[WhiteElo "1450"]
[BlackElo "1542"]
[Annotator "NA RC"]
[PlyCount "90"]
[EventDate "2019.12.19"]
[EventType "team-tourn"]
[EventCountry "CHN"]
[SourceTitle "playchess.com"]
[Source "ChessBase"]
[SourceQuality "1"]
[WhiteTeam "Hong Kong"]
[BlackTeam "China"]
[WhiteTeamCountry "HKG"]
[BlackTeamCountry "CHN"]
[TimeControl "5400+30"]

1. d4 {[%emt 0:00:00]} Nf6 {[%emt 0:00:00]} 2. c4 {[%emt 0:00:00]} e6 {[%emt 0:00:00]} 3. Nf3 {[%emt 0:00:00]} b6 {[%emt 0:00:00]} 4. g3 {[%emt 0:00:24]} Bb7 {[%emt 0:00:00]} 5. Bg2 {[%emt 0:00:03]} Be7 {[%emt 0:00:00]} 6. O-O {[%emt 0:00:23]} O-O {[%emt 0:00:00]} 7. b3 {[%emt 0:01:04]} d6 {[%emt 0:00:53]} 8. Nc3 {[%emt 0:01:12]} Ne4 {[%emt 0:01:02]} 9. Bb2 {[%emt 0:01:00]} Nxc3 {[%emt 0:00:41]} 10. Bxc3 {[%emt 0:00:09]} f5 {[%emt 0:00:18]} 11. Ne1 {[%emt 0:02:52]} Bxg2 {[%emt 0:00:07]} 12. Nxg2 {[%emt 0:00:06]} Bf6 {[%emt 0:00:40]} 13. Qd3 {[%emt 0:04:23]} Nd7 {[%emt 0:16:02]} 14. Nf4 {[%emt 0:04:41]} Qe8 {[%emt 0:00:24]} 15. Rae1 {[%emt 0:11:01]} Bg5 {[%emt 0:06:19]} 16. Nh3 {[%emt 0:04:12]} Qh5 {[%emt 0:01:29]} 17. Nxg5 {[%emt 0:00:22]} Qxg5 {[%emt 0:00:09]} 18. f4 {[%emt 0:00:16]} Qg4 {[%emt 0:04:09]} 19. e4 {[%emt 0:01:29]} Nf6 {[%emt 0:02:45]} 20. exf5 {[%emt 0:09:45]} exf5 {[%emt 0:00:08]} 21. Re7 {[%emt 0:01:02]} Rf7 {[%emt 0:00:11]} 22. Re6 {[%emt 0:10:20]} Ne4 {[%emt 0:01:15]} 23. Kg2 {[%emt 0:00:31]} Rf6 {[%emt 0:11:29]} 24. Rxf6 {[%emt 0:17:36]} gxf6 {[%emt 0:01:06]} 25. h3 {[%emt 0:04:17]} Qg6 {[%emt 0:00:23]} 26. Bb2 {[%emt 0:04:32]} Kf7 {[%emt 0:00:51]} 27. Rf3 {[%emt 0:02:02]} Rg8 {[%emt 0:00:20]} 28. c5 {[%emt 0:02:25]} h5 {[%emt 0:05:01]} 29. h4 {[%emt 0:01:02]} Kg7 {[%emt 0:01:25]} 30. cxd6 {[%emt 0:00:27]} cxd6 {[%emt 0:00:19]} 31. d5 {[%emt 0:00:52]} Kh6 {[%emt 0:00:28]} 32. Kh2 {[%emt 0:02:33]} Rc8 {[%emt 0:00:37]} 33. Rf1 {[%emt 0:02:24]} Qf7 {[%emt 0:00:26]} 34. Rc1 {[%emt 0:02:01]} Rg8 {[%emt 0:01:56]} 35. Bc3 {[%emt 0:01:26]} Rxg3 {[%emt 0:02:13]} 36. Qxg3 {[%emt 0:01:11]} Nxg3 {[%emt 0:00:05]} 37. Kxg3 {[%emt 0:00:03]} Qxd5 {[%emt 0:00:11]} 38. Rf1 {[%emt 0:00:45]} Kg6 {[%emt 0:01:05]} 39. Rf3 {[%emt 0:01:37]} Qe4 {[%emt 0:01:02]} 40. a3 {[%emt 0:00:49]} d5 {[%emt 0:00:10]} 41. Kg2 {[%emt 0:00:47]} d4 {[%emt 0:00:17]} 42. Bd2 {[%emt 0:00:10]} Qe2+ {[%emt 0:00:56]} 43. Rf2 {[%emt 0:00:14]} Qg4+ {[%emt 0:00:06]} 44. Kh1 {[%emt 0:00:27]} Qh3+ {[%emt 0:00:19]} 45. Kg1 {[%emt 0:00:11]} Qxb3 {[%emt 0:00:08]} 0-1

[Event "2nd Asian Nations Team Cup U14 2019"]
[Site "Shenzhen"]
[Date "2019.12.23"]
[Round "5.10"]
[White "Tsogtbayar, Batlut"]
[Black "Foo, Jiu Yarng Clarance"]
[Result "0-1"]
[ECO "D36"]
[WhiteElo "1404"]
[BlackElo "1654"]
[Annotator "NA RC"]
[PlyCount "87"]
[EventDate "2019.12.19"]
[EventType "team-tourn"]
[EventCountry "CHN"]
[SourceTitle "playchess.com"]
[Source "ChessBase"]
[SourceQuality "1"]
[WhiteTeam "Mongolia"]
[BlackTeam "Malaysia"]
[WhiteTeamCountry "MGL"]
[BlackTeamCountry "MAS"]
[TimeControl "5400+30"]

1. d4 {[%emt 0:00:00]} d5 {[%emt 0:00:00]} 2. c4 {[%emt 0:00:49]} e6 {[%emt 0:00:00]} 3. Nc3 {[%emt 0:01:32]} Nf6 {[%emt 0:00:00]} 4. cxd5 {[%emt 0:01:55]} exd5 {[%emt 0:00:01]} 5. Bg5 {[%emt 0:00:18]} Be7 {[%emt 0:00:19]} 6. e3 {[%emt 0:00:56]} c6 {[%emt 0:00:20]} 7. Bd3 {[%emt 0:01:34]} O-O {[%emt 0:00:55]} 8. Nge2 {[%emt 0:00:29]} Re8 {[%emt 0:01:10]} 9. Qc2 {[%emt 0:01:47]} Nbd7 {[%emt 0:00:35]} 10. O-O {[%emt 0:01:55]} Nf8 {[%emt 0:00:46]} 11. Rab1 {[%emt 0:02:58]} Be6 {[%emt 0:06:49]} 12. b4 {[%emt 0:02:29]} a6 {[%emt 0:03:27]} 13. a4 {[%emt 0:03:56]} b5 {[%emt 0:17:48]} 14. axb5 {[%emt 0:03:02]} axb5 {[%emt 0:00:07]} 15. Rfc1 {[%emt 0:00:54]} N6d7 {[%emt 0:01:44]} 16. Bf4 {[%emt 0:12:30]} Nb6 {[%emt 0:03:53]} 17. Nxb5 {[%emt 0:05:36]} cxb5 {[%emt 0:25:33]} 18. Bc7 {[%emt 0:00:22]} Qd7 {[%emt 0:01:55]} 19. Bxb6 {[%emt 0:00:20]} Rec8 {[%emt 0:02:54]} 20. Bc5 {[%emt 0:00:41]} Bf6 {[%emt 0:03:34]} 21. Nc3 {[%emt 0:00:27]} Rab8 {[%emt 0:03:32]} 22. Qe2 {[%emt 0:00:43]} Bg4 {[%emt 0:02:22]} 23. Qf1 {[%emt 0:00:50]} Ng6 {[%emt 0:03:10]} 24. h3 {[%emt 0:02:31]} Bf5 {[%emt 0:03:01]} 25. Bxf5 {[%emt 0:04:20]} Qxf5 {[%emt 0:00:13]} 26. Nxb5 {[%emt 0:00:40]} Nh4 {[%emt 0:03:06]} 27. Nd6 {[%emt 0:00:43]} Qg6 {[%emt 0:01:07]} 28. Nxc8 {[%emt 0:00:26]} Nf3+ {[%emt 0:00:39]} 29. Kh1 {[%emt 0:00:23]} Nd2 {[%emt 0:00:43]} 30. Qd1 {[%emt 0:00:28]} Nxb1 {[%emt 0:04:52]} 31. Rxb1 {[%emt 0:00:42]} Rxc8 {[%emt 0:00:10]} 32. b5 {[%emt 0:00:26]} Bd8 {[%emt 0:00:07]} 33. b6 {[%emt 0:00:22]} Rb8 {[%emt 0:00:22]} 34. b7 {[%emt 0:00:20]} h5 {[%emt 0:01:31]} 35. Ba7 {[%emt 0:00:20]} Bc7 {[%emt 0:00:08]} 36. Bxb8 {[%emt 0:00:18]} Bxb8 {[%emt 0:00:12]} 37. f4 {[%emt 0:00:04]} Kh7 {[%emt 0:03:19]} 38. Rc1 {[%emt 0:00:19]} Kh6 {[%emt 0:06:26]} 39. Rc8 {[%emt 0:00:46]} Qd6 {[%emt 0:00:39]} 40. Qc2 {[%emt 0:00:34]} g6 {[%emt 0:00:49]} 41. Qc6 {[%emt 0:00:08]} Qb4 {[%emt 0:00:43]} 42. Qf6 {[%emt 0:00:51]} Qe1+ {[%emt 0:00:33]} 43. Kh2 {[%emt 0:00:14]} Bxf4+ {[%emt 0:01:21]} 44. exf4 {[%emt 0:00:08]} 0-1